fUST/lending_fUST_20250809
["ID","MTS","AMOUNT","RATE_DAILY","PERIOD"]
[378085764,1754719841017,-460.0,0.00021917,2]
[378085766,1754719841027,-383.83442842,0.00021917,2]
[378085769,1754719841036,-460.0,0.00021917,2]
[378085771,1754719841045,-460.0,0.00021917,2]
[378085773,1754719841055,-460.0,0.00021917,2]
[378085775,1754719841064,-487.19993008,0.00021917,2]
[378085777,1754719841073,-460.0,0.00021917,2]
[378085778,1754719841082,-496.21752533,0.00021917,2]
[378085780,1754719841092,-460.0,0.00021917,2]
[378085783,1754719841101,-460.0,0.00021917,2]
[378085785,1754719841110,-460.0,0.00021917,2]
[378085787,1754719841119,-461.21571421,0.00021917,2]
[378085789,1754719841129,-460.0,0.00021917,2]
[378085791,1754719841138,-460.0,0.00021917,2]
[378085792,1754719841147,-460.0,0.00021917,2]
[378085794,1754719841156,-460.0,0.00021917,2]
[378085797,1754719841166,-460.0,0.00021917,2]
[378085798,1754719841175,-460.0,0.00021917,2]
[378085800,1754719841184,-460.0,0.00021917,2]
[378085802,1754719841193,-620.36,0.00021917,2]
[378085804,1754719841203,-460.0,0.00021917,2]
[378085806,1754719841212,-460.0,0.00021917,2]
[378085808,1754719841222,-460.0,0.00021917,2]
[378085810,1754719841231,-460.0,0.00021917,2]
[378085812,1754719841240,-203.70520697,0.00021917,2]
[378085814,1754719841249,-461.14104053,0.00021917,2]
[378085816,1754719841258,-460.0,0.00021917,2]
[378085818,1754719841267,-460.0,0.00021917,2]
[378085820,1754719841276,-461.93712565,0.00021917,2]
[378085822,1754719841285,-240.04217954,0.00021917,2]
[378085824,1754719841295,-460.0,0.00021917,2]
[378085826,1754719841304,-460.0,0.00021917,2]
[378085828,1754719841313,-460.0,0.00021917,2]
[378085830,1754719841322,-460.0,0.00021917,2]
[378085832,1754719841332,-464.28318477,0.00021917,2]
[378085834,1754719841341,-460.0,0.00021917,2]
[378085836,1754719841350,-460.5377402,0.00021917,2]
[378085838,1754719841359,-460.0,0.00021917,2]
[378085840,1754719841367,-460.0,0.00021917,2]
[378085842,1754719841375,-460.0,0.00021917,2]
[378085844,1754719841384,-460.0,0.00021917,2]
[378085846,1754719841393,-460.0,0.00021917,2]
[378085848,1754719841402,-460.0,0.00021917,2]
[378085850,1754719841412,-460.0,0.00021917,2]
[378085852,1754719841421,-460.0,0.00021917,2]
[378085854,1754719841430,-476.32,0.00021917,2]
[378085856,1754719841439,-461.25486598,0.00021917,2]
[378085858,1754719841449,-460.0,0.00021917,2]
[378085860,1754719841459,-460.0,0.00021917,2]
[378085862,1754719841468,-460.0,0.00021917,2]
[378085864,1754719841477,-460.0,0.00021917,2]
[378085866,1754719841486,-460.0,0.00021917,2]
[378085868,1754719841496,-460.0,0.00021917,2]
[378085870,1754719841505,-460.0,0.00021917,2]
[378085871,1754719841514,-460.0,0.00021917,2]
[378085873,1754719841528,-460.0,0.00021917,2]
[378085875,1754719841537,-460.0,0.00021917,2]
[378085877,1754719841546,-460.0,0.00021917,2]
[378085879,1754719841555,-460.0,0.00021917,2]
[378085881,1754719841566,-460.0,0.00021917,2]
[378085884,1754719841576,-460.0,0.00021917,2]
[378085886,1754719841585,-460.0,0.00021917,2]
[378085888,1754719841597,-460.0,0.00021917,2]
[378085890,1754719841606,-460.62555134,0.00021917,2]
[378085892,1754719841616,-460.0,0.00021917,2]
[378085894,1754719841625,-461.51081952,0.00021917,2]
[378085895,1754719841634,-460.93052874,0.00021917,2]
[378085897,1754719841645,-460.0,0.00021917,2]
[378085899,1754719841655,-460.0,0.00021917,2]
[378085901,1754719841664,-463.48831897,0.00021917,2]
[378085903,1754719841674,-460.0,0.00021917,2]
[378085905,1754719841683,-460.0,0.00021917,2]
[378085907,1754719841692,-460.0,0.00021917,2]
[378085909,1754719841702,-698.63,0.00021917,2]
[378085911,1754719841711,-465.01365457,0.00021917,2]
[378085913,1754719841721,-460.0,0.00021917,2]
[378085915,1754719841732,-460.0,0.00021917,2]
[378085917,1754719841742,-470.38733951,0.00021917,2]
[378085919,1754719841752,-460.0,0.00021917,2]
[378085921,1754719841762,-500.0,0.00021917,2]
[378085923,1754719841772,-500.0,0.00021917,2]
[378085925,1754719841793,-500.0,0.00021917,2]
[378085927,1754719841804,-500.0,0.00021917,2]
[378085929,1754719841814,-460.0,0.00021917,2]
[378085931,1754719841823,-521.78249063,0.00021917,2]
[378085933,1754719841833,-460.0,0.00021917,2]
[378085935,1754719841843,-466.53697395,0.00021917,2]
[378085937,1754719841853,-460.0,0.00021917,2]
[378085939,1754719841862,-460.0,0.00021917,2]
[378085941,1754719841872,-460.0,0.00021917,2]
[378085943,1754719841881,-460.0,0.00021917,2]
[378085945,1754719841891,-460.0,0.00021917,2]
[378085947,1754719841900,-460.0,0.00021917,2]
[378085949,1754719841910,-460.0,0.00021917,2]
[378085951,1754719841920,-460.0,0.00021917,2]
[378085953,1754719841929,-460.0,0.00021917,2]
[378085955,1754719841938,-248.25990491,0.00021917,2]
[378085957,1754719841948,-481.51466695,0.00021917,2]
[378085959,1754719841958,-460.0,0.00021917,2]
[378085961,1754719841967,-460.0,0.00021917,2]
[378085963,1754719841977,-460.0,0.00021917,2]
[378085965,1754719841986,-460.0,0.00021917,2]
[378085967,1754719841995,-460.0,0.00021917,2]
[378085969,1754719842005,-461.14684409,0.00021917,2]
[378085971,1754719842014,-460.0,0.00021917,2]
[378085973,1754719842023,-460.0,0.00021917,2]
[378085975,1754719842032,-464.0714805,0.00021917,2]
[378085977,1754719842042,-460.0,0.00021917,2]
[378085979,1754719842051,-460.0,0.00021917,2]
[378085981,1754719842060,-460.0,0.00021917,2]
[378085983,1754719842070,-460.0,0.00021917,2]
[378085985,1754719842080,-460.0,0.00021917,2]
[378085987,1754719842090,-460.0,0.00021917,2]
[378085989,1754719842099,-460.0,0.00021917,2]
[378085991,1754719842108,-460.0,0.00021917,2]
[378085993,1754719842117,-460.0,0.00021917,2]
[378085994,1754719842127,-460.0,0.00021917,2]
[378085996,1754719842136,-460.0,0.00021917,2]
[378085998,1754719842145,-460.0,0.00021917,2]
[378086000,1754719842154,-460.0,0.00021917,2]
[378086002,1754719842164,-461.11567725,0.00021917,2]
[378086004,1754719842173,-460.0,0.00021917,2]
[378086006,1754719842183,-460.0,0.00021917,2]
[378086008,1754719842192,-460.0,0.00021917,2]
[378086010,1754719842202,-460.0,0.00021917,2]
[378086012,1754719842211,-460.0,0.00021917,2]
[378086014,1754719842221,-586.5,0.00021917,2]
[378086016,1754719842239,-466.91306504,0.00021917,2]
[378086018,1754719842252,-460.0,0.00021917,2]
[378086020,1754719842262,-460.0,0.00021917,2]
[378086022,1754719842271,-460.0,0.00021917,2]
[378086024,1754719842280,-460.0,0.00021917,2]
[378086026,1754719842290,-460.0,0.00021917,2]
[378086028,1754719842299,-620.61,0.00021917,2]
[378086030,1754719842309,-460.0,0.00021917,2]
[378086032,1754719842318,-981.06,0.00021917,2]
[378086034,1754719842327,-460.0,0.00021917,2]
[378086035,1754719842336,-460.0,0.00021917,2]
[378086037,1754719842346,-1058.35,0.00021917,2]
[378086039,1754719842355,-504.15245242,0.00021917,2]
[378086041,1754719842365,-460.0,0.00021917,2]
[378086043,1754719842375,-460.80941233,0.00021917,2]
[378086045,1754719842384,-460.0,0.00021917,2]
[378086047,1754719842393,-462.31083918,0.00021917,2]
[378086049,1754719842403,-460.0,0.00021917,2]
[378086051,1754719842412,-460.0,0.00021917,2]
[378086053,1754719842421,-465.27637304,0.00021917,2]
[378086055,1754719842431,-460.0,0.00021917,2]
[378086057,1754719842440,-1108.01,0.00021917,2]
[378086059,1754719842450,-460.0,0.00021917,2]
[378086061,1754719842460,-514.96,0.00021917,2]
[378086063,1754719842469,-3630.53,0.00021917,2]
[378086065,1754719842479,-480.76,0.00021917,2]
[378086067,1754719842488,-438.30199321,0.00021917,2]
[378086069,1754719842497,-460.0,0.00021917,2]
[378086071,1754719842507,-460.0,0.00021917,2]
[378086073,1754719842518,-460.0,0.00021917,2]
[378086075,1754719842529,-460.0,0.00021917,2]
[378086077,1754719842538,-460.0,0.00021917,2]
[378086079,1754719842547,-460.0,0.00021917,2]
[378086081,1754719842557,-490.07,0.00021917,2]
[378086083,1754719842566,-460.0,0.00021917,2]
[378086084,1754719842575,-460.0,0.00021917,2]
[378086086,1754719842584,-460.0,0.00021917,2]
[378086088,1754719842594,-460.0,0.00021917,2]
[378086090,1754719842603,-460.0,0.00021917,2]
[378086092,1754719842612,-1100.06,0.00021917,2]
[378086094,1754719842621,-461.45021059,0.00021917,2]
[378086096,1754719842631,-460.0,0.00021917,2]
[378086098,1754719842640,-460.0,0.00021917,2]
[378086100,1754719842650,-889.48,0.00021917,2]
[378086102,1754719842659,-460.0,0.00021917,2]
[378086104,1754719842668,-548.55,0.00021917,2]
[378086106,1754719842678,-460.0,0.00021917,2]
[378086108,1754719842687,-584.65,0.00021917,2]
[378086110,1754719842696,-438.25892681,0.00021917,2]
[378086112,1754719842706,-460.0,0.00021917,2]
[378086114,1754719842715,-469.8107584,0.00021917,2]
[378086116,1754719842724,-460.0,0.00021917,2]
[378086118,1754719842734,-460.0,0.00021917,2]
[378086121,1754719842743,-460.0,0.00021917,2]
[378086123,1754719842752,-460.0,0.00021917,2]
[378086124,1754719842762,-462.84417309,0.00021917,2]
[378086126,1754719842771,-460.0,0.00021917,2]
[378086128,1754719842781,-460.0,0.00021917,2]
[378086130,1754719842790,-460.0,0.00021917,2]
[378086132,1754719842800,-460.0,0.00021917,2]
[378086135,1754719842809,-460.0,0.00021917,2]
[378086136,1754719842818,-460.0,0.00021917,2]
[378086138,1754719842827,-460.0,0.00021917,2]
[378086142,1754719842837,-460.80487321,0.00021917,2]
[378086144,1754719842847,-589.62,0.00021917,2]
[378086147,1754719842856,-460.0,0.00021917,2]
[378086149,1754719842866,-460.0,0.00021917,2]
[378086151,1754719842875,-1382.95,0.00021917,2]
[378086153,1754719842884,-460.0,0.00021917,2]
[378086155,1754719842893,-1872.19,0.00021917,2]
[378086159,1754719842903,-361.24998086,0.00021917,2]
[378086161,1754719842912,-985.43,0.00021917,2]
[378086163,1754719842921,-460.0,0.00021917,2]
[378086165,1754719842931,-460.0,0.00021917,2]
[378086167,1754719842940,-460.0,0.00021917,2]
[378086169,1754719842950,-460.74218967,0.00021917,2]
[378086171,1754719842960,-460.0,0.00021917,2]
[378086173,1754719842969,-460.0,0.00021917,2]
[378086175,1754719842978,-460.0,0.00021917,2]
[378086177,1754719842987,-468.66278935,0.00021917,2]
[378086179,1754719842996,-4580.53,0.00021917,2]
[378086181,1754719843005,-460.0,0.00021917,2]
[378086183,1754719843014,-460.0,0.00021917,2]
[378086185,1754719843024,-460.0,0.00021917,2]
[378086187,1754719843034,-654.92,0.00021917,2]
[378086189,1754719843043,-460.0,0.00021917,2]
[378086191,1754719843052,-460.0,0.00021917,2]
[378086193,1754719843062,-470.71068477,0.00021917,2]
[378086195,1754719843071,-644.31,0.00021917,2]
[378086197,1754719843080,-460.0,0.00021917,2]
[378086198,1754719843090,-460.0,0.00021917,2]
[378086200,1754719843099,-460.0,0.00021917,2]
[378086202,1754719843108,-460.0,0.00021917,2]
[378086204,1754719843118,-460.0,0.00021917,2]
[378086206,1754719843127,-2067.88,0.00021917,2]
[378086208,1754719843136,-460.0,0.00021917,2]
[378086210,1754719843145,-497.58223768,0.00021917,2]
[378086212,1754719843154,-460.0,0.00021917,2]
[378086214,1754719843163,-460.0,0.00021917,2]
[378086216,1754719843173,-460.0,0.00021917,2]
[378086218,1754719843182,-463.53548998,0.00021917,2]
[378086220,1754719843192,-460.0,0.00021917,2]
[378086222,1754719843203,-469.28838492,0.00021917,2]
[378086224,1754719843211,-461.7675835,0.00021917,2]
[378086226,1754719843220,-460.0,0.00021917,2]
[378086228,1754719843229,-584.57,0.00021917,2]
[378086231,1754719843239,-465.47153071,0.00021917,2]
[378086234,1754719843248,-460.0,0.00021917,2]
[378086238,1754719843258,-460.0,0.00021917,2]
[378086239,1754719843270,-471.62698404,0.00021917,2]
[378086241,1754719843279,-460.0,0.00021917,2]
[378086243,1754719843288,-460.0,0.00021917,2]
[378086245,1754719843297,-460.0,0.00021917,2]
[378086247,1754719843306,-1665.57,0.00021917,2]
[378086249,1754719843316,-463.56752237,0.00021917,2]
[378086251,1754719843325,-460.0,0.00021917,2]
[378086253,1754719843334,-460.0,0.00021917,2]
[378086255,1754719843344,-460.0,0.00021917,2]
[378086257,1754719843354,-460.0,0.00021917,2]
[378086259,1754719843363,-460.0,0.00021917,2]
[378086261,1754719843372,-530.95638922,0.00021917,2]
[378086263,1754719843382,-460.0,0.00021917,2]
[378086265,1754719843391,-460.0,0.00021917,2]
[378086266,1754719843400,-460.0,0.00021917,2]
[378086268,1754719843410,-460.0,0.00021917,2]
[378086269,1754719843419,-460.0,0.00021917,2]
[378086271,1754719843429,-494.96218489,0.00021917,2]
[378086273,1754719843438,-460.0,0.00021917,2]
[378086275,1754719843448,-460.0,0.00021917,2]
[378086277,1754719843457,-487.36,0.00021917,2]
[378086278,1754719843467,-460.0,0.00021917,2]
[378086279,1754719843475,-460.0,0.00021917,2]
[378086280,1754719843484,-460.0,0.00021917,2]
[378086281,1754719843493,-460.0,0.00021917,2]
[378086282,1754719843502,-460.0,0.00021917,2]
[378086283,1754719843511,-460.0,0.00021917,2]
[378086284,1754719843524,-460.0,0.00021917,2]
[378086285,1754719843543,-460.0,0.00021917,2]
[378086286,1754719843552,-512.24979203,0.00021917,2]
[378086287,1754719843562,-807.47,0.00021917,2]
[378086288,1754719843572,-460.0,0.00021917,2]
[378086289,1754719843582,-1573.68,0.00021917,2]
[378086290,1754719843591,-460.0,0.00021917,2]
[378086291,1754719843600,-460.0,0.00021917,2]
[378086292,1754719843610,-517.67,0.00021917,2]
[378086293,1754719843620,-460.0,0.00021917,2]
[378086295,1754719843629,-460.0,0.00021917,2]
[378086296,1754719843638,-460.0,0.00021917,2]
[378086297,1754719843647,-460.0,0.00021917,2]
[378086299,1754719843657,-460.0,0.00021917,2]
[378086301,1754719843666,-587.3,0.00021917,2]
[378086303,1754719843675,-197.20888348,0.00021917,2]
[378086305,1754719843686,-738.23,0.00021917,2]
[378086307,1754719843695,-900.38,0.00021917,2]
[378086309,1754719843705,-460.0,0.00021917,2]
[378086311,1754719843714,-460.0,0.00021917,2]
[378086313,1754719843724,-460.0,0.00021917,2]
[378086315,1754719843734,-460.0,0.00021917,2]
[378086317,1754719843743,-460.0,0.00021917,2]
[378086319,1754719843753,-1185.83,0.00021917,2]
[378086321,1754719843762,-460.0,0.00021917,2]
[378086323,1754719843772,-462.12483712,0.00021917,2]
[378086325,1754719843781,-461.45478136,0.00021917,2]
[378086340,1754719843912,-460.0,0.00021917,2]
[378086342,1754719843922,-460.00005,0.00021917,2]
[378086344,1754719843931,-1051.35,0.00021917,2]
[378086345,1754719843941,-336.28839185,0.00021917,2]
[378086347,1754719843950,-1345.46,0.00021917,2]
[378086349,1754719843959,-460.0,0.00021917,2]
[378086351,1754719843969,-463.11060539,0.00021917,2]
[378086353,1754719843978,-460.0,0.00021917,2]
[378086355,1754719843987,-460.0,0.00021917,2]
[378086357,1754719843997,-460.0,0.00021917,2]
[378086359,1754719844006,-462.48514539,0.00021917,2]
[378086362,1754719844016,-460.0,0.00021917,2]
[378086363,1754719844026,-460.0,0.00021917,2]
[378086366,1754719844035,-200.13603471,0.00021917,2]
[378086367,1754719844045,-631.81158613,0.00021917,2]
[378086370,1754719844054,-460.0,0.00021917,2]
[378086371,1754719844064,-460.0,0.00021917,2]
[378086374,1754719844073,-460.0,0.00021917,2]
[378086376,1754719844083,-472.86385672,0.00021917,2]
[378086378,1754719844093,-469.21419575,0.00021917,2]
[378086379,1754719844102,-460.0,0.00021917,2]
[378086382,1754719844112,-462.96006442,0.00021917,2]
[378086384,1754719844124,-479.37,0.00021917,2]
[378086386,1754719844133,-1787.98,0.00021917,2]
[378086388,1754719844142,-460.0,0.00021917,2]
[378086389,1754719844151,-460.0,0.00021917,2]
[378086391,1754719844160,-460.0,0.00021917,2]
[378086394,1754719844170,-460.0,0.00021917,2]
[378086395,1754719844180,-460.0,0.00021917,2]
[378086397,1754719844189,-460.0,0.00021917,2]
[378086399,1754719844199,-460.0,0.00021917,2]
[378086401,1754719844209,-363.03226123,0.00021917,2]
[378086403,1754719844218,-460.0,0.00021917,2]
[378086405,1754719844227,-460.0,0.00021917,2]
[378086407,1754719844237,-401.45962208,0.00021917,2]
[378086409,1754719844247,-460.0,0.00021917,2]
[378086411,1754719844256,-729.45,0.00021917,2]
[378086413,1754719844266,-460.0,0.00021917,2]
[378086415,1754719844275,-460.0,0.00021917,2]
[378086417,1754719844288,-460.0,0.00021917,2]
[378086419,1754719844297,-460.0,0.00021917,2]
[378086421,1754719844306,-460.0,0.00021917,2]
[378086423,1754719844316,-2919.37,0.00021917,2]
[378086425,1754719844325,-460.0,0.00021917,2]
[378086427,1754719844335,-500.0,0.00021918,2]
[378086429,1754719844344,-500.0,0.00021973,2]
[378086431,1754719844354,-500.0,0.00021973,2]
[378086433,1754719844363,-500.0,0.00021973,2]
[378086435,1754719844372,-500.0,0.00021973,2]
[378086437,1754719844382,-502.41951852,0.00021973,2]
[378086439,1754719844392,-600.0,0.00021973,2]
[378086441,1754719844401,-500.0,0.00021973,2]
[378086443,1754719844410,-500.0,0.00021973,2]
[378086445,1754719844419,-500.0,0.00021973,2]
[378086447,1754719844431,-500.0,0.00021973,2]
[378086449,1754719844440,-500.0,0.00021973,2]
[378086451,1754719844450,-500.0,0.00021973,2]
[378086453,1754719844460,-500.0,0.00021973,2]
[378086455,1754719844469,-477.83451743,0.00021973,2]
[378086457,1754719844478,-500.0,0.00021973,2]
[378086459,1754719844488,-150.0,0.00021973,2]
[378086461,1754719844497,-500.0,0.00021973,2]
[378086463,1754719844507,-500.0,0.00021973,2]
[378086465,1754719844516,-500.0,0.00021973,2]
[378086467,1754719844525,-500.0,0.00021973,2]
[378086469,1754719844534,-500.0,0.00021973,2]
[378086471,1754719844547,-500.0,0.00021973,2]
[378086473,1754719844556,-500.0,0.00021973,2]
[378086475,1754719844565,-524.94051381,0.00021973,2]
[378086477,1754719844574,-100000.0,0.0002199,2]
[378086479,1754719844584,-984.92,0.00022,2]
[378086481,1754719844593,-153.88,0.00022,2]
[378086483,1754719844602,-247.73543846,0.00022154,2]
[378086485,1754719844611,-152.15388907,0.00022154,2]
[378086487,1754719844621,-500.0,0.00022154,2]
[378086489,1754719844630,-255.0,0.00022154,2]
[378086491,1754719844639,-151.0,0.00022154,2]
[378086493,1754719844648,-151.0,0.00022154,2]
[378086495,1754719844657,-198.91726074,0.00022154,2]
[378086497,1754719844666,-151.0,0.00022154,2]
[378086499,1754719844675,-198.67878968,0.00022154,2]
[378086501,1754719844684,-201.32751794,0.00022154,2]
[378086502,1754719844693,-151.0,0.00022154,2]
[378086504,1754719844703,-150.0,0.00022173,2]
[378086506,1754719844712,-500.0,0.00022173,2]
[378086508,1754719844721,-500.0,0.00022173,2]
[378086510,1754719844732,-460.0,0.00022191,2]
[378086512,1754719844741,-460.0,0.00022191,2]
[378086514,1754719844750,-460.0,0.00022191,2]
[378086516,1754719844760,-460.0,0.00022191,2]
[378086518,1754719844769,-460.0,0.00022191,2]
[378086520,1754719844778,-460.0,0.00022191,2]
[378086522,1754719844787,-460.0,0.00022191,2]
[378086524,1754719844796,-460.0,0.00022191,2]
[378086526,1754719844806,-469.48545593,0.00022191,2]
[378086528,1754719844815,-460.0,0.00022191,2]
[378086530,1754719844825,-263.23497626,0.00022191,2]
[378086532,1754719844834,-460.0,0.00022191,2]
[378086534,1754719844843,-460.0,0.00022191,2]
[378086536,1754719844852,-210.58,0.00022191,2]
[378086538,1754719844862,-460.0,0.00022191,2]
[378086540,1754719844871,-460.0,0.00022191,2]
[378086542,1754719844880,-460.0,0.00022191,2]
[378086544,1754719844890,-460.0,0.00022191,2]
[378086546,1754719844900,-601.23000005,0.00022191,2]
[378086548,1754719844910,-460.0,0.00022191,2]
[378086550,1754719844920,-460.0,0.00022191,2]
[378086552,1754719844930,-460.0,0.00022191,2]
[378086554,1754719844939,-460.0,0.00022191,2]
[378086556,1754719844952,-460.0,0.00022191,2]
[378086558,1754719844963,-460.0,0.00022191,2]
[378086560,1754719844973,-460.0,0.00022191,2]
[378086562,1754719844982,-460.0,0.00022191,2]
[378086564,1754719844992,-460.0,0.00022191,2]
[378086566,1754719845001,-460.0,0.00022191,2]
[378086568,1754719845012,-620.36,0.00022191,2]
[378086570,1754719845022,-220.25240884,0.00022191,2]
[378086572,1754719845032,-460.0,0.00022191,2]
[378086574,1754719845041,-178.95349153,0.00022191,2]
[378086575,1754719845051,-460.0,0.00022191,2]
[378086577,1754719845061,-460.0,0.00022191,2]
[378086579,1754719845070,-460.0,0.00022191,2]
[378086581,1754719845080,-460.0,0.00022191,2]
[378086583,1754719845089,-460.0,0.00022191,2]
[378086585,1754719845099,-460.0,0.00022191,2]
[378086587,1754719845108,-476.32,0.00022191,2]
[378086589,1754719845117,-460.0,0.00022191,2]
[378086591,1754719845127,-460.0,0.00022191,2]
[378086593,1754719845137,-460.0,0.00022191,2]
[378086595,1754719845146,-460.0,0.00022191,2]
[378086597,1754719845156,-460.0,0.00022191,2]
[378086599,1754719845166,-460.0,0.00022191,2]
[378086601,1754719845175,-460.0,0.00022191,2]
[378086603,1754719845185,-460.0,0.00022191,2]
[378086605,1754719845195,-698.63,0.00022191,2]
[378086607,1754719845205,-460.0,0.00022191,2]
[378086609,1754719845215,-460.0,0.00022191,2]
[378086611,1754719845224,-460.0,0.00022191,2]
[378086613,1754719845234,-320.46591772,0.00022191,2]
[378086615,1754719845243,-460.0,0.00022191,2]
[378086617,1754719845253,-460.0,0.00022191,2]
[378086619,1754719845262,-460.0,0.00022191,2]
[378086621,1754719845271,-460.0,0.00022191,2]
[378086623,1754719845282,-165.29452837,0.00022191,2]
[378086625,1754719845291,-460.0,0.00022191,2]
[378086627,1754719845300,-323.2459122,0.00022191,2]
[378086629,1754719845310,-460.0,0.00022191,2]
[378086631,1754719845319,-460.0,0.00022191,2]
[378086633,1754719845329,-460.0,0.00022191,2]
[378086635,1754719845339,-460.0,0.00022191,2]
[378086637,1754719845349,-586.5,0.00022191,2]
[378086639,1754719845358,-351.95889763,0.00022191,2]
[378086641,1754719845367,-460.0,0.00022191,2]
[378086643,1754719845377,-460.0,0.00022191,2]
[378086645,1754719845387,-620.61,0.00022191,2]
[378086647,1754719845396,-460.0,0.00022191,2]
[378086649,1754719845406,-981.06,0.00022191,2]
[378086651,1754719845416,-496.11,0.00022191,2]
[378086653,1754719845426,-460.0,0.00022191,2]
[378086655,1754719845435,-1058.35,0.00022191,2]
[378086657,1754719845445,-460.0,0.00022191,2]
[378086659,1754719845457,-460.0,0.00022191,2]
[378086661,1754719845466,-460.0,0.00022191,2]
[378086663,1754719845475,-460.0,0.00022191,2]
[378086665,1754719845484,-1108.01,0.00022191,2]
[378086667,1754719845494,-514.96,0.00022191,2]
[378086669,1754719845503,-480.76,0.00022191,2]
[378086671,1754719845513,-460.0,0.00022191,2]
[378086673,1754719845525,-460.0,0.00022191,2]
[378086675,1754719845534,-490.07,0.00022191,2]
[378086677,1754719845543,-489.02,0.00022191,2]
[378086679,1754719845552,-460.0,0.00022191,2]
[378086681,1754719845563,-460.0,0.00022191,2]
[378086683,1754719845572,-460.0,0.00022191,2]
[378086685,1754719845582,-1100.06,0.00022191,2]
[378086687,1754719845592,-889.48,0.00022191,2]
[378086689,1754719845603,-460.0,0.00022191,2]
[378086691,1754719845613,-548.55,0.00022191,2]
[378086693,1754719845622,-460.0,0.00022191,2]
[378086695,1754719845631,-584.65,0.00022191,2]
[378086697,1754719845641,-460.0,0.00022191,2]
[378086699,1754719845650,-460.0,0.00022191,2]
[378086701,1754719845659,-271.28407095,0.00022191,2]
[378086703,1754719845669,-589.62,0.00022191,2]
[378086705,1754719845679,-460.0,0.00022191,2]
[378086707,1754719845689,-460.0,0.00022191,2]
[378086709,1754719845702,-1382.95,0.00022191,2]
[378086711,1754719845711,-460.0,0.00022191,2]
[378086713,1754719845719,-1872.19,0.00022191,2]
[378086715,1754719845729,-985.43,0.00022191,2]
[378086717,1754719845738,-170.81714969,0.00022191,2]
[378086719,1754719845748,-460.0,0.00022191,2]
[378086721,1754719845758,-460.0,0.00022191,2]
[378086723,1754719845768,-460.0,0.00022191,2]
[378086725,1754719845777,-460.0,0.00022191,2]
[378086727,1754719845786,-4580.53,0.00022191,2]
[378086729,1754719845796,-460.0,0.00022191,2]
[378086731,1754719845805,-460.0,0.00022191,2]
[378086733,1754719845814,-654.92,0.00022191,2]
[378086735,1754719845824,-460.0,0.00022191,2]
[378086738,1754719845833,-644.31,0.00022191,2]
[378086740,1754719845842,-460.0,0.00022191,2]
[378086741,1754719845852,-460.0,0.00022191,2]
[378086743,1754719845861,-582.78553001,0.00022191,2]
[378086745,1754719845871,-2067.88,0.00022191,2]
[378086747,1754719845880,-460.0,0.00022191,2]
[378086749,1754719845890,-460.0,0.00022191,2]
[378086751,1754719845900,-460.0,0.00022191,2]
[378086753,1754719845910,-584.57,0.00022191,2]
[378086756,1754719845920,-460.0,0.00022191,2]